fUSD/lending_fUSD_20240702
["ID","MTS","AMOUNT","RATE_DAILY","PERIOD"]
[330934986,1719947459575,-500.0,0.00022465,4]
[330934987,1719947459585,-500.0,0.00022465,4]
[330934988,1719947459594,-360.82,0.00022465,4]
[330934989,1719947459605,-500.0,0.00022465,4]
[330934990,1719947459616,-500.0,0.00022465,4]
[330934991,1719947459625,-500.0,0.00022465,4]
[330934992,1719947459634,-500.0,0.00022465,4]
[330934993,1719947459644,-500.0,0.00022465,4]
[330934994,1719947459653,-500.0,0.00022465,4]
[330934995,1719947459662,-500.0,0.00022465,4]
[330934996,1719947459672,-500.0,0.00022465,4]
[330934997,1719947459687,-500.0,0.00022465,4]
[330934998,1719947459705,-500.0,0.00022465,4]
[330934999,1719947459720,-500.0,0.00022465,4]
[330935000,1719947459738,-500.0,0.00022465,4]
[330935001,1719947459756,-500.0,0.00022465,4]
[330935002,1719947459775,-344.11,0.00022465,4]
[330935003,1719947459795,-500.0,0.00022465,4]
[330935004,1719947459814,-500.0,0.00022465,4]
[330935005,1719947459831,-500.0,0.00022465,4]
[330935006,1719947459848,-500.0,0.00022465,4]
[330935007,1719947459862,-279.72,0.00022465,4]
[330935008,1719947459876,-500.0,0.00022465,4]
[330935009,1719947459890,-500.0,0.00022465,4]
[330935010,1719947459907,-500.0,0.00022465,4]
[330935011,1719947459925,-500.0,0.00022465,4]
[330935012,1719947459938,-500.0,0.00022465,4]
[330935013,1719947459951,-500.0,0.00022465,4]
[330935014,1719947459966,-500.0,0.00022465,4]
[330935015,1719947459983,-500.0,0.00022465,4]
[330935016,1719947459995,-500.0,0.00022465,4]
[330935017,1719947460014,-500.0,0.00022465,4]
[330935018,1719947460028,-500.0,0.00022465,4]
[330935019,1719947460040,-500.0,0.00022465,4]
[330935020,1719947460053,-500.0,0.00022465,4]
[330935021,1719947460066,-500.0,0.00022465,4]
[330935022,1719947460079,-500.0,0.00022465,4]
[330935023,1719947460094,-500.0,0.00022465,4]
[330935024,1719947460108,-500.0,0.00022465,4]
[330935025,1719947460122,-500.0,0.00022465,4]
[330935026,1719947460136,-500.0,0.00022465,4]
[330935027,1719947460150,-500.0,0.00022465,4]
[330935028,1719947460163,-450.56,0.00022465,4]
[330935029,1719947460179,-500.0,0.00022465,4]
[330935030,1719947460192,-500.0,0.00022465,4]
[330935031,1719947460206,-500.0,0.00022465,4]
[330935032,1719947460219,-500.0,0.00022465,4]
[330935033,1719947460233,-500.0,0.00022465,4]
[330935034,1719947460247,-500.0,0.00022465,4]
[330935035,1719947460263,-500.0,0.00022465,4]
[330935036,1719947460277,-500.0,0.00022465,4]
[330935037,1719947460291,-500.0,0.00022465,4]
[330935038,1719947460305,-500.0,0.00022465,4]
[330935039,1719947460318,-500.0,0.00022465,4]
[330935040,1719947460331,-500.0,0.00022465,4]
[330935041,1719947460344,-500.0,0.00022465,4]
[330935042,1719947460357,-500.0,0.00022465,4]
[330935043,1719947460370,-327.64,0.00022465,4]
[330935044,1719947460384,-500.0,0.00022465,4]
[330935045,1719947460397,-500.0,0.00022465,4]
[330935046,1719947460411,-500.0,0.00022465,4]
[330935047,1719947460423,-500.0,0.00022465,4]
[330935048,1719947460437,-616.04,0.00022465,4]
[330935049,1719947460450,-289.24,0.00022465,4]
[330935050,1719947460463,-225.4,0.00022465,4]
[330935051,1719947460477,-500.0,0.00022465,4]
[330935052,1719947460490,-500.0,0.00022465,4]
[330935053,1719947460505,-500.0,0.00022465,4]
[330935054,1719947460519,-500.0,0.00022465,4]
[330935055,1719947460532,-500.0,0.00022465,4]
[330935056,1719947460546,-500.0,0.00022465,4]
[330935057,1719947460560,-410.04,0.00022465,4]
[330935058,1719947460574,-500.0,0.00022465,4]
[330935059,1719947460587,-500.0,0.00022465,4]
[330935060,1719947460603,-628.66,0.00022465,4]
[330935061,1719947460617,-289.6,0.00022465,4]
[330935062,1719947460632,-500.0,0.00022465,4]
[330935063,1719947460647,-500.0,0.00022465,4]
[330935064,1719947460657,-500.0,0.00022465,4]
[330935065,1719947460667,-500.0,0.00022465,4]
[330935066,1719947460677,-500.0,0.00022465,4]
[330935067,1719947460686,-500.0,0.00022465,4]
[330935068,1719947460696,-270.8,0.00022465,4]
[330935069,1719947460706,-500.0,0.00022465,4]
[330935070,1719947460715,-500.0,0.00022465,4]
[330935071,1719947460725,-500.0,0.00022465,4]
[330935072,1719947460734,-500.0,0.00022465,4]
[330935073,1719947460743,-500.0,0.00022465,4]
[330935074,1719947460754,-500.0,0.00022465,4]
[330935075,1719947460763,-500.0,0.00022465,4]
[330935076,1719947460773,-500.0,0.00022465,4]
[330935077,1719947460783,-328.18,0.00022465,4]
[330935078,1719947460793,-500.0,0.00022465,4]
[330935079,1719947460803,-500.0,0.00022465,4]
[330935080,1719947460813,-500.0,0.00022465,4]
[330935081,1719947460822,-500.0,0.00022465,4]
[330935082,1719947460832,-500.0,0.00022465,4]
[330935083,1719947460842,-500.0,0.00022465,4]
[330935084,1719947460851,-500.0,0.00022465,4]
[330935085,1719947460861,-393.26,0.00022465,4]
[330935086,1719947460871,-641.16,0.00022465,4]
[330935087,1719947460880,-500.0,0.00022465,4]
[330935088,1719947460889,-500.0,0.00022465,4]
[330935089,1719947460899,-156.16,0.00022465,4]
[330935090,1719947460909,-500.0,0.00022465,4]
[330935091,1719947460918,-411.81562318,0.00022465,4]
[330935092,1719947460928,-500.0,0.00022465,4]
[330935093,1719947460938,-500.0,0.00022465,4]
[330935094,1719947460947,-500.0,0.00022465,4]
[330935095,1719947460957,-500.0,0.00022465,4]
[330935096,1719947460966,-569.54017875,0.00022465,4]
[330935097,1719947460975,-500.0,0.00022465,4]
[330935098,1719947460984,-500.0,0.00022465,4]
[330935099,1719947460993,-500.0,0.00022465,4]
[330935100,1719947461298,-500.0,0.00022465,4]
[330935101,1719947461319,-500.0,0.00022465,4]
[330935102,1719947461335,-500.0,0.00022465,4]
[330935103,1719947461345,-500.0,0.00022465,4]
[330935104,1719947461354,-500.0,0.00022465,4]
[330935105,1719947461364,-500.0,0.00022465,4]
[330935106,1719947461373,-500.0,0.00022465,4]
[330935107,1719947461382,-500.0,0.00022465,4]
[330935108,1719947461394,-312.91,0.00022465,4]
[330935109,1719947461404,-500.0,0.00022465,4]
[330935110,1719947461412,-500.0,0.00022465,4]
[330935111,1719947461422,-500.0,0.00022465,4]
[330935112,1719947461431,-500.0,0.00022465,4]
[330935113,1719947461441,-500.0,0.00022465,4]
[330935114,1719947461451,-500.0,0.00022465,4]
[330935115,1719947461461,-500.0,0.00022465,4]
[330935116,1719947461470,-500.0,0.00022465,4]
[330935117,1719947461481,-500.0,0.00022465,4]
[330935118,1719947461490,-326.96,0.00022465,4]
[330935119,1719947461500,-500.0,0.00022465,4]
[330935120,1719947461513,-500.0,0.00022465,4]
[330935121,1719947461523,-500.0,0.00022465,4]
[330935122,1719947461532,-500.0,0.00022465,4]
[330935123,1719947461541,-500.0,0.00022465,4]
[330935124,1719947461554,-500.0,0.00022465,4]
[330935125,1719947461563,-500.0,0.00022465,4]
[330935126,1719947461572,-500.0,0.00022465,4]
[330935127,1719947461581,-500.0,0.00022465,4]
[330935128,1719947461590,-500.0,0.00022465,4]
[330935129,1719947461599,-500.0,0.00022465,4]
[330935130,1719947461610,-500.0,0.00022465,4]
[330935131,1719947461620,-500.0,0.00022465,4]
[330935132,1719947461629,-458.74,0.00022465,4]
[330935133,1719947461639,-500.0,0.00022465,4]
[330935134,1719947461650,-500.0,0.00022465,4]
[330935135,1719947461659,-500.0,0.00022465,4]
[330935136,1719947461669,-408.38210227,0.00022465,4]
[330935137,1719947461678,-500.0,0.00022465,4]
[330935138,1719947461687,-552.74,0.00022465,4]
[330935139,1719947461697,-500.0,0.00022465,4]
[330935140,1719947461707,-171.69792797,0.00022465,4]
[330935141,1719947461716,-594.25,0.00022465,4]
[330935142,1719947461725,-594.25,0.00022465,4]
[330935143,1719947461735,-500.0,0.00022465,4]
[330935144,1719947461744,-643.16,0.00022465,4]
[330935145,1719947461757,-500.0,0.00022465,4]
[330935146,1719947461766,-594.25,0.00022465,4]
[330935147,1719947461775,-500.0,0.00022465,4]
[330935148,1719947461784,-594.25,0.00022465,4]
[330935149,1719947461793,-500.0,0.00022465,4]
[330935150,1719947461802,-500.0,0.00022465,4]
[330935151,1719947461811,-500.0,0.00022465,4]
[330935152,1719947461820,-500.0,0.00022465,4]
[330935153,1719947461830,-594.25,0.00022465,4]
[330935154,1719947461839,-500.0,0.00022465,4]
[330935155,1719947461849,-500.0,0.00022465,4]
[330935156,1719947461858,-500.0,0.00022465,4]
[330935157,1719947461868,-594.25,0.00022465,4]
[330935158,1719947461877,-500.0,0.00022465,4]
[330935159,1719947461887,-500.0,0.00022465,4]
[330935160,1719947461896,-529.32,0.00022465,4]
[330935161,1719947461906,-500.0,0.00022465,4]
[330935162,1719947461915,-500.0,0.00022465,4]
[330935163,1719947461924,-500.0,0.00022465,4]
[330935164,1719947461934,-500.0,0.00022465,4]
[330935165,1719947461944,-179.8,0.00022465,4]
[330935166,1719947461954,-500.0,0.00022465,4]
[330935167,1719947461964,-636.0080231,0.00022465,4]
[330935168,1719947461973,-500.0,0.00022465,4]
[330935169,1719947461983,-500.0,0.00022465,4]
[330935170,1719947461993,-418.6,0.00022465,4]
[330935171,1719947462003,-594.25,0.00022465,4]
[330935172,1719947462015,-594.25,0.00022465,4]
[330935173,1719947462024,-500.0,0.00022465,4]
[330935174,1719947462033,-501.90985459,0.00022465,4]
[330935175,1719947462042,-594.25,0.00022465,4]
[330935176,1719947462051,-500.0,0.00022465,4]
[330935177,1719947462060,-500.0,0.00022465,4]
[330935178,1719947462070,-500.0,0.00022465,4]
[330935179,1719947462080,-594.25,0.00022465,4]
[330935180,1719947462090,-500.0,0.00022465,4]
[330935181,1719947462101,-500.0,0.00022465,4]
[330935182,1719947462112,-594.25,0.00022465,4]
[330935183,1719947462121,-345.5,0.00022465,4]
[330935184,1719947462131,-500.0,0.00022465,4]
[330935185,1719947462142,-500.0,0.00022465,4]
[330935186,1719947462151,-594.25,0.00022465,4]
[330935187,1719947462161,-500.0,0.00022465,4]
[330935188,1719947462171,-500.0,0.00022465,4]
[330935189,1719947462182,-594.25,0.00022465,4]
[330935190,1719947462191,-500.0,0.00022465,4]
[330935191,1719947462201,-594.25,0.00022465,4]
[330935192,1719947462210,-594.25,0.00022465,4]
[330935193,1719947462220,-500.0,0.00022465,4]
[330935194,1719947462229,-594.25,0.00022465,4]
[330935195,1719947462239,-500.0,0.00022465,4]
[330935196,1719947462248,-500.0,0.00022465,4]
[330935197,1719947462259,-500.0,0.00022465,4]
[330935198,1719947462268,-500.0,0.00022465,4]
[330935199,1719947462278,-500.0,0.00022465,4]
[330935200,1719947462288,-594.25,0.00022465,4]
[330935201,1719947462297,-500.0,0.00022465,4]
[330935202,1719947462308,-500.0,0.00022465,4]
[330935203,1719947462318,-500.0,0.00022465,4]
[330935204,1719947462328,-620.28,0.00022465,4]
[330935205,1719947462337,-500.0,0.00022465,4]
[330935206,1719947462347,-594.25,0.00022465,4]
[330935207,1719947462356,-518.52,0.00022465,4]
[330935208,1719947462366,-500.0,0.00022465,4]
[330935209,1719947462376,-601.18,0.00022465,4]
[330935210,1719947462386,-594.25,0.00022465,4]
[330935211,1719947462395,-500.0,0.00022465,4]
[330935212,1719947462405,-594.25,0.00022465,4]
[330935213,1719947462415,-500.0,0.00022465,4]
[330935214,1719947462424,-500.0,0.00022465,4]
[330935215,1719947462434,-594.25,0.00022465,4]
[330935216,1719947462443,-500.0,0.00022465,4]
[330935217,1719947462452,-500.0,0.00022465,4]
[330935218,1719947462462,-500.0,0.00022465,4]
[330935219,1719947462473,-594.25,0.00022465,4]
[330935220,1719947462482,-594.25,0.00022465,4]
[330935221,1719947462493,-594.25,0.00022465,4]
[330935222,1719947462502,-500.0,0.00022465,4]
[330935223,1719947462513,-500.0,0.00022465,4]
[330935224,1719947462523,-500.0,0.00022465,4]
[330935225,1719947462533,-151.0,0.00022465,7]
[330935226,1719947462542,-500.0,0.00022465,4]
[330935227,1719947462552,-500.0,0.00022465,4]
[330935228,1719947462561,-500.0,0.00022465,4]
[330935229,1719947462571,-500.0,0.00022465,4]
[330935230,1719947462580,-500.0,0.00022465,4]
[330935231,1719947462590,-500.0,0.00022465,4]
[330935232,1719947462600,-189.74,0.00022465,4]
[330935233,1719947462613,-500.0,0.00022465,4]
[330935234,1719947462623,-500.0,0.00022465,4]
[330935235,1719947462633,-500.0,0.00022465,4]
[330935236,1719947462643,-500.0,0.00022465,4]
[330935237,1719947462653,-333.02,0.00022465,4]
[330935238,1719947462663,-500.0,0.00022465,4]
[330935239,1719947462673,-500.0,0.00022465,4]
[330935240,1719947462683,-500.0,0.00022465,4]
[330935241,1719947462694,-500.0,0.00022465,4]
[330935242,1719947462703,-500.0,0.00022465,4]
[330935243,1719947462713,-500.0,0.00022465,4]
[330935244,1719947462723,-208.18,0.00022465,4]
[330935245,1719947462733,-500.0,0.00022465,4]
[330935246,1719947462742,-211.48,0.00022465,4]
[330935247,1719947462752,-500.0,0.00022465,4]
[330935248,1719947462763,-500.0,0.00022465,4]
[330935249,1719947462779,-500.0,0.00022465,4]
[330935250,1719947462788,-500.0,0.00022465,4]
[330935251,1719947462799,-500.0,0.00022465,4]
[330935252,1719947462810,-500.0,0.00022465,4]
[330935253,1719947462820,-379.42,0.00022465,4]
[330935254,1719947462832,-500.0,0.00022465,4]
[330935255,1719947462842,-500.0,0.00022465,4]
[330935256,1719947462854,-500.0,0.00022465,4]
[330935257,1719947462864,-500.0,0.00022465,4]
[330935258,1719947462873,-500.0,0.00022465,4]
[330935259,1719947462882,-500.0,0.00022465,4]
[330935260,1719947462893,-500.0,0.00022465,4]
[330935261,1719947462902,-500.0,0.00022465,4]
[330935262,1719947462911,-500.0,0.00022465,4]
[330935263,1719947462921,-500.0,0.00022465,4]
[330935264,1719947462930,-500.0,0.00022465,4]
[330935265,1719947462940,-500.0,0.00022465,4]
[330935266,1719947462950,-500.0,0.00022465,4]
[330935267,1719947462960,-500.0,0.00022465,4]
[330935268,1719947462970,-500.0,0.00022465,4]
[330935269,1719947462979,-500.0,0.00022465,4]
[330935270,1719947462989,-500.0,0.00022465,4]
[330935271,1719947462999,-500.0,0.00022465,4]
[330935272,1719947463010,-500.0,0.00022465,4]
[330935273,1719947463019,-500.0,0.00022465,4]
[330935274,1719947463027,-500.0,0.00022465,4]
[330935275,1719947463036,-500.0,0.00022465,4]
[330935276,1719947463045,-500.0,0.00022465,4]
[330935277,1719947463055,-500.0,0.00022465,4]
[330935278,1719947463064,-500.0,0.00022465,4]
[330935279,1719947463074,-98.90587628,0.00022465,4]
[330935280,1719947463393,-284.2125,0.00022465,4]
[330935281,1719947463406,-116.88162372,0.00022465,4]
[330935282,1719947463415,-500.0,0.00022465,4]
[330935283,1719947463426,-500.0,0.00022465,4]
[330935284,1719947463435,-500.0,0.00022465,4]
[330935285,1719947463444,-500.0,0.00022465,4]
[330935286,1719947463455,-500.0,0.00022465,4]
[330935287,1719947463465,-500.0,0.00022465,4]
[330935288,1719947463477,-500.0,0.00022465,4]
[330935289,1719947463487,-500.0,0.00022465,4]
[330935290,1719947463496,-500.0,0.00022465,4]
[330935291,1719947463508,-500.0,0.00022465,4]
[330935292,1719947463517,-500.0,0.00022465,4]
[330935293,1719947463526,-206.31341697,0.00022465,4]
[330935294,1719947463540,-293.68658303,0.00022465,4]
[330935295,1719947463550,-500.0,0.00022465,4]
[330935296,1719947463560,-500.0,0.00022465,4]
[330935297,1719947463570,-500.0,0.00022465,4]
[330935298,1719947463579,-236.04,0.00022465,4]
[330935299,1719947463589,-220.12,0.00022465,4]
[330935300,1719947463598,-500.0,0.00022465,4]
[330935301,1719947463610,-500.0,0.00022465,4]
[330935302,1719947463621,-500.0,0.00022465,4]
[330935303,1719947463631,-500.0,0.00022465,4]
[330935304,1719947463641,-500.0,0.00022465,4]
[330935305,1719947463651,-500.0,0.00022465,4]
[330935306,1719947463660,-157.74,0.00022465,4]
[330935307,1719947463671,-500.0,0.00022465,4]
[330935308,1719947463680,-500.0,0.00022465,4]
[330935309,1719947463690,-500.0,0.00022465,4]
[330935310,1719947463700,-500.0,0.00022465,4]
[330935311,1719947463710,-500.0,0.00022465,4]
[330935312,1719947463719,-500.0,0.00022465,4]
[330935313,1719947463728,-500.0,0.00022465,4]
[330935314,1719947463737,-500.0,0.00022465,4]
[330935315,1719947463747,-500.0,0.00022465,4]
[330935316,1719947463757,-351.24,0.00022465,4]
[330935317,1719947463766,-500.0,0.00022465,4]
[330935318,1719947463775,-500.0,0.00022465,4]
[330935319,1719947463784,-500.0,0.00022465,4]
[330935320,1719947463793,-500.0,0.00022465,4]
[330935321,1719947463802,-636.98,0.00022465,4]
[330935322,1719947463812,-401.13,0.00022465,4]
[330935323,1719947463821,-500.0,0.00022465,4]
[330935324,1719947463831,-500.0,0.00022465,4]
[330935325,1719947463840,-500.0,0.00022465,4]
[330935326,1719947463849,-500.0,0.00022465,4]
[330935327,1719947463861,-500.0,0.00022465,4]
[330935328,1719947463870,-613.26,0.00022465,4]
[330935329,1719947463879,-500.0,0.00022465,4]
[330935330,1719947463888,-630.7,0.00022465,4]
[330935331,1719947463897,-311.59609129,0.00022465,4]
[330935332,1719947463914,-188.40390871,0.00022465,4]
[330935333,1719947463923,-500.0,0.00022465,4]
[330935334,1719947463932,-345.2,0.00022465,4]
[330935335,1719947463942,-393.84550958,0.00022465,4]
[330935336,1719947463953,-106.15449042,0.00022465,4]
[330935337,1719947463963,-500.0,0.00022465,4]
[330935338,1719947463973,-271.40032758,0.00022465,4]
[330935339,1719947463984,-228.59967242,0.00022465,4]
[330935340,1719947463994,-500.0,0.00022465,4]
[330935341,1719947464004,-500.0,0.00022465,4]
[330935342,1719947464017,-500.0,0.00022465,4]
[330935343,1719947464026,-500.0,0.00022465,4]
[330935344,1719947464035,-500.0,0.00022465,4]
[330935345,1719947464045,-500.0,0.00022465,4]
[330935346,1719947464055,-500.0,0.00022465,4]
[330935347,1719947464064,-500.0,0.00022465,4]
[330935348,1719947464074,-500.0,0.00022465,4]
[330935349,1719947464083,-500.0,0.00022465,4]
[330935350,1719947464094,-500.0,0.00022465,4]
[330935351,1719947464108,-500.0,0.00022465,4]
[330935352,1719947464117,-500.0,0.00022465,4]
[330935353,1719947464126,-500.0,0.00022465,4]
[330935354,1719947464137,-500.0,0.00022465,4]
[330935355,1719947464146,-428.08,0.00022465,4]
[330935356,1719947464155,-500.0,0.00022465,4]
[330935357,1719947464165,-500.0,0.00022465,4]
[330935358,1719947464176,-500.0,0.00022465,4]
[330935359,1719947464186,-500.0,0.00022465,4]
[330935360,1719947464195,-500.0,0.00022465,4]
[330935361,1719947464204,-500.0,0.00022465,4]
[330935362,1719947464214,-500.0,0.00022465,4]
[330935363,1719947464226,-578.49,0.00022465,4]
[330935364,1719947464239,-517.76,0.00022465,4]
[330935365,1719947464248,-500.0,0.00022465,4]
[330935366,1719947464260,-500.0,0.00022465,4]
[330935367,1719947464269,-500.0,0.00022465,4]
[330935368,1719947464278,-248.93,0.00022465,4]
[330935369,1719947464288,-500.0,0.00022465,4]
[330935370,1719947464297,-500.0,0.00022465,4]
[330935371,1719947464307,-500.0,0.00022465,4]
[330935372,1719947464316,-500.0,0.00022465,4]
[330935373,1719947464325,-500.0,0.00022465,4]
[330935374,1719947464334,-500.0,0.00022465,4]
[330935375,1719947464343,-500.0,0.00022465,4]
[330935376,1719947464353,-339.14,0.00022465,4]
[330935377,1719947464362,-500.0,0.00022465,4]
[330935378,1719947464371,-500.0,0.00022465,4]
[330935379,1719947464380,-500.0,0.00022465,4]
[330935380,1719947464389,-500.0,0.00022465,4]
[330935381,1719947464400,-500.0,0.00022465,4]
[330935382,1719947464409,-500.0,0.00022465,4]
[330935383,1719947464418,-419.99904203,0.00022465,4]
[330935384,1719947464435,-80.00095797,0.00022465,4]
[330935385,1719947464445,-351.96829215,0.00022465,4]
[330935386,1719947464457,-148.03170785,0.00022465,4]
[330935387,1719947464467,-500.0,0.00022465,4]
[330935388,1719947464477,-500.0,0.00022465,4]
[330935389,1719947464489,-500.0,0.00022465,4]
[330935390,1719947464498,-500.0,0.00022465,4]
[330935391,1719947464509,-500.0,0.00022465,4]
[330935392,1719947464519,-500.0,0.00022465,4]
[330935393,1719947464528,-467.83437396,0.00022465,4]
[330935394,1719947464539,-32.16562604,0.00022465,4]
[330935395,1719947464552,-500.0,0.00022465,4]
[330935396,1719947464561,-277.52382396,0.00022465,4]
[330935397,1719947464574,-222.47617604,0.00022465,4]
[330935398,1719947464583,-282.19667766,0.00022465,4]
[330935402,1719947623879,1000.0,0.000221,120]
[330935403,1719947647137,1008.2,0.000111,10]
[330935410,1719947892333,202.35569147,0.00011199,2]
[330935414,1719947910578,155.0,0.00011199,2]
[330935417,1719947940596,227.09542874,0.00011199,2]
[330935433,1719948377627,271.85724688,0.00011199,2]
[330935437,1719948472908,288.05394468,0.00011199,2]
[330935443,1719948620001,155.72385129,0.00011199,2]
[330935447,1719948632573,-9236.41322618,0.00013472,2]
[330935449,1719948632584,-859.83677382,0.00013472,2]
[330935451,1719948632594,-155.0,0.00013543,2]
[330935452,1719948632603,-300.0,0.00013573,2]
[330935454,1719948632613,-300.0,0.00013573,2]
[330935455,1719948632622,-683.78042898,0.00013574,2]
[330935456,1719948632631,-500.0,0.00015592,2]
[330935457,1719948632641,-4958.0,0.000158,2]
[330935458,1719948632650,-152.0,0.00015899,2]
[330935459,1719948632659,-11482.0,0.000162,3]
[330935460,1719948632669,-11482.0,0.000166,5]
[330935461,1719948632679,-500.0,0.00017236,2]
[330935462,1719948632688,-3967.8675886,0.00017259,2]
[330935463,1719948632697,-5000.0,0.00017533,2]
[330935464,1719948632707,-461.21,0.00017907,2]
[330935465,1719948632717,-321.04595371,0.00018332,2]
[330935466,1719948632729,-178.95404629,0.00018332,2]
[330935467,1719948632739,-294.79,0.00018603,2]
[330935468,1719948632748,-77.52198193,0.00018717,2]
[330935469,1719948632761,-1681.5321463,0.00018717,2]
[330935470,1719948632771,-155.0,0.00018899,2]
[330935471,1719948632782,-1340.45,0.00018899,2]
[330935472,1719948632792,-673.25513442,0.00018999,2]
[330935473,1719948632802,-756.0,0.000193,3]
[330935474,1719948632811,-2504.0,0.000193,3]
[330935475,1719948632821,-250.0,0.00019423,2]
[330935476,1719948632841,-500.0,0.00019428,2]
[330935477,1719948632851,-250.0,0.00019462,2]
[330935478,1719948632860,-198.08,0.00019605,2]
[330935480,1719948632871,-203.2,0.00019625,2]
[330935482,1719948632880,-1500.0,0.00019695,5]
[330935484,1719948632890,-250.0,0.00019697,2]
[330935486,1719948632901,-160.33,0.00019712,30]
[330935487,1719948632910,-191.35,0.00019715,2]
[330935488,1719948632920,-3231.22,0.00019724,2]
[330935489,1719948632930,-500.9,0.00019739,2]
[330935490,1719948632941,-152.8,0.00019752,2]
[330935491,1719948632951,-500.0,0.00019772,2]
[330935492,1719948632962,-152.8,0.00019807,2]
[330935493,1719948632972,-152.8,0.00019861,2]
[330935494,1719948632982,-150.0,0.00019874,4]
[330935495,1719948632992,-152.8,0.00019915,2]
[330935496,1719948633002,-152.8,0.00019969,2]
[330935497,1719948633012,-368.80613182,0.0001999,2]
[330935498,1719948633022,-552.0,0.0002,20]
[330935499,1719948633033,-1000.0,0.00020018,2]
[330935500,1719948633043,-152.8,0.00020023,2]
[330935501,1719948633053,-152.8,0.00020077,2]
[330935502,1719948633064,-152.8,0.00020132,2]
[330935503,1719948633073,-461.21,0.0002017,2]
[330935504,1719948633083,-152.8,0.00020186,2]
[330935505,1719948633093,-152.8,0.0002024,2]
[330935506,1719948633104,-152.8,0.00020294,2]
[330935507,1719948633114,-210.44,0.00020301,2]
[330935508,1719948633124,-152.8,0.00020348,2]
[330935509,1719948633134,-152.8,0.00020402,2]
[330935510,1719948633143,-152.8,0.00020457,2]
[330935511,1719948633153,-152.8,0.00020511,2]
[330935513,1719948633163,-500.0,0.00020524,2]
[330935515,1719948633172,-152.8,0.00020565,2]
[330935517,1719948633182,-152.8,0.00020619,2]
[330935519,1719948633192,-6585.86191682,0.00020652,2]
[330935521,1719948633201,-152.8,0.00020673,2]
[330935523,1719948633212,-152.8,0.00020727,2]
[330935525,1719948633222,-152.8,0.00020782,2]
[330935527,1719948633232,-175.51,0.00021001,2]
[330935529,1719948633242,-1830.0,0.00021153,2]
[330935531,1719948633252,-207.0,0.00021229,2]
[330935534,1719948633261,-300.0,0.0002162,2]
[330935536,1719948633271,-347.31,0.00021644,2]
[330935538,1719948633280,-173.0,0.00021764,2]
[330935539,1719948633290,-310.72,0.00021862,2]
[330935541,1719948633299,-1055.9,0.00021862,2]
[330935543,1719948633311,-2000.0,0.000219,4]
[330935544,1719948633321,-161.86916046,0.000219,2]
[330935545,1719948633334,-1292.48899107,0.0002191,4]
[330935546,1719948633350,-707.51100893,0.0002191,4]
[330935547,1719948633360,-292.06,0.00021918,2]
[330935548,1719948633371,-150.42,0.00021918,2]